[Event "Titled Tuesday Blitz May 31 Late 2022"]
[White "Ezat, Mohamed"]
[Black "Ozdemir, Serhan Berat"]
[WhiteFideId "10600906"]
[BlackFideId "6374611"]
[WhiteElo "2386"]
[BlackElo "1920"]
[Result "1/2-1/2"]
[Round "04"]
[TimeControl "180+1"]
[Date "2022.06.01"]
[WhiteClock "0:00:06"]
[BlackClock "0:00:04"]

1. d4 {[%clk 0:03:00]}  Nf6 {[%clk 0:02:59]} 2. c4 {[%clk 0:03:01]}  g6 {[%clk 0:03:00]} 3. Nc3 {[%clk 0:03:00]}  Bg7 {[%clk 0:03:00]} 4. e4 {[%clk 0:03:00]}  d6 {[%clk 0:03:00]} 5. Be2 {[%clk 0:03:01]}  O-O {[%clk 0:02:59]} 6. Bg5 {[%clk 0:03:01]}  c5 {[%clk 0:02:58]} 7. d5 {[%clk 0:03:01]}  h6 {[%clk 0:02:56]} 8. Bf4 {[%clk 0:03:00]}  e6 {[%clk 0:02:53]} 9. Qd2 {[%clk 0:03:00]}  Kh7 {[%clk 0:02:52]} 10. h3 {[%clk 0:02:59]}  exd5 {[%clk 0:02:49]} 11. exd5 {[%clk 0:02:58]}  Re8 {[%clk 0:02:38]} 12. Nf3 {[%clk 0:02:58]}  Bf5 {[%clk 0:02:25]} 13. O-O {[%clk 0:02:49]}  Ne4 {[%clk 0:02:20]} 14. Nxe4 {[%clk 0:02:49]}  Bxe4 {[%clk 0:02:21]} 15. Rae1 {[%clk 0:02:48]}  f5 {[%clk 0:02:14]} 16. Bd1 {[%clk 0:02:23]}  Qb6 {[%clk 0:01:59]} 17. b3 {[%clk 0:02:20]}  Nd7 {[%clk 0:01:58]} 18. Nh2 {[%clk 0:02:08]}  Qb4 {[%clk 0:01:09]} 19. Qxb4 {[%clk 0:02:05]}  cxb4 {[%clk 0:01:10]} 20. Bxd6 {[%clk 0:02:05]}  Bc3 {[%clk 0:01:07]} 21. Re3 {[%clk 0:01:58]}  Nf6 {[%clk 0:01:03]} 22. a3 {[%clk 0:01:52]}  a5 {[%clk 0:01:01]} 23. a4 {[%clk 0:01:46]}  Rac8 {[%clk 0:00:59]} 24. g4 {[%clk 0:00:39]}  Bd4 {[%clk 0:00:55]} 25. gxf5 {[%clk 0:00:38]}  Bxe3 {[%clk 0:00:50]} 26. fxg6+ {[%clk 0:00:37]}  Bxg6 {[%clk 0:00:51]} 27. fxe3 {[%clk 0:00:37]}  Ne4 {[%clk 0:00:43]} 28. Bf4 {[%clk 0:00:31]}  Rg8 {[%clk 0:00:42]} 29. Kh1 {[%clk 0:00:23]}  Rcf8 {[%clk 0:00:31]} 30. Bf3 {[%clk 0:00:13]}  Rxf4 {[%clk 0:00:25]} 31. exf4 {[%clk 0:00:12]}  Ng3+ {[%clk 0:00:26]} 32. Kg2 {[%clk 0:00:10]}  Nxf1 {[%clk 0:00:21]} 33. Kxf1 {[%clk 0:00:10]}  Bc2 {[%clk 0:00:18]} 34. Ng4 {[%clk 0:00:11]}  Rf8 {[%clk 0:00:14]} 35. c5 {[%clk 0:00:11]}  Bxb3 {[%clk 0:00:13]} 36. d6 {[%clk 0:00:11]}  Bc4+ {[%clk 0:00:14]} 37. Kf2 {[%clk 0:00:11]}  b3 {[%clk 0:00:13]} 38. Ne5 {[%clk 0:00:11]}  b2 {[%clk 0:00:12]} 39. Be4+ {[%clk 0:00:10]}  Kg7 {[%clk 0:00:12]} 40. Nxc4 {[%clk 0:00:09]}  Rxf4+ {[%clk 0:00:12]} 41. Kg3 {[%clk 0:00:09]}  Rxe4 {[%clk 0:00:13]} 42. Nxb2 {[%clk 0:00:10]}  Re5 {[%clk 0:00:12]} 43. Nd3 {[%clk 0:00:09]}  Rd5 {[%clk 0:00:13]} 44. Nf4 {[%clk 0:00:09]}  Rd2 {[%clk 0:00:10]} 45. Kf3 {[%clk 0:00:07]}  Kf6 {[%clk 0:00:10]} 46. Ke3 {[%clk 0:00:07]}  Rd1 {[%clk 0:00:10]} 47. Ke4 {[%clk 0:00:08]}  Re1+ {[%clk 0:00:07]} 48. Kd5 {[%clk 0:00:07]}  Rd1+ {[%clk 0:00:07]} 49. Kc4 {[%clk 0:00:07]}  Rb1 {[%clk 0:00:08]} 50. Nd5+ {[%clk 0:00:05]}  Ke6 {[%clk 0:00:08]} 51. Nf4+ {[%clk 0:00:05]}  Kd7 {[%clk 0:00:06]} 52. Kd5 {[%clk 0:00:05]}  Rd1+ {[%clk 0:00:05]} 53. Ke5 {[%clk 0:00:05]}  Rb1 {[%clk 0:00:05]} 54. Nd5 {[%clk 0:00:04]}  Re1+ {[%clk 0:00:06]} 55. Kd4 {[%clk 0:00:04]}  Rd1+ {[%clk 0:00:06]} 56. Kc4 {[%clk 0:00:04]}  Rb1 {[%clk 0:00:05]} 57. Nc3 {[%clk 0:00:03]}  Rb4+ {[%clk 0:00:03]} 58. Kd5 {[%clk 0:00:04]}  Rh4 {[%clk 0:00:04]} 59. Ne4 {[%clk 0:00:04]}  Rxh3 {[%clk 0:00:04]} 60. Nf6+ {[%clk 0:00:04]}  Kd8 {[%clk 0:00:05]} 61. d7 {[%clk 0:00:03]}  Rd3+ {[%clk 0:00:04]} 62. Ke6 {[%clk 0:00:03]}  Re3+ {[%clk 0:00:04]} 63. Kd6 {[%clk 0:00:03]}  Rd3+ {[%clk 0:00:04]} 64. Ke6 {[%clk 0:00:03]}  h5 {[%clk 0:00:04]} 65. Nxh5 {[%clk 0:00:03]}  Rxd7 {[%clk 0:00:05]} 66. Nf6 {[%clk 0:00:04]}  Rd4 {[%clk 0:00:04]} 67. Nd5 {[%clk 0:00:02]}  Rxa4 {[%clk 0:00:03]} 68. Kd6 {[%clk 0:00:03]}  Ra1 {[%clk 0:00:02]} 69. c6 {[%clk 0:00:04]}  bxc6 {[%clk 0:00:01]} 70. Kxc6 {[%clk 0:00:05]}  Rb1 {[%clk 0:00:02]} 71. Kc5 {[%clk 0:00:03]}  a4 {[%clk 0:00:02]} 72. Nc3 {[%clk 0:00:04]}  Rc1 {[%clk 0:00:02]} 73. Kb4 {[%clk 0:00:05]}  a3 {[%clk 0:00:02]} 74. Kb3 {[%clk 0:00:04]}  Ra1 {[%clk 0:00:01]} 75. Na2 {[%clk 0:00:04]}  Rb1+ {[%clk 0:00:01]} 76. Kxa3 {[%clk 0:00:05]}  Rb6 {[%clk 0:00:02]} 77. Nb4 {[%clk 0:00:05]}  Kc7 {[%clk 0:00:03]} 78. Nd5+ {[%clk 0:00:05]}  Kc6 {[%clk 0:00:04]} 79. Nxb6 {[%clk 0:00:06]} 1/2-1/2


[Site "https://www.chess.com"]

[Event "Titled Tuesday Blitz May 31 Late 2022"]
[White "Fiedorek, Michal"]
[Black "Rosen, Eric"]
[WhiteFideId "1199528"]
[BlackFideId "2032562"]
[WhiteElo "1833"]
[BlackElo "2362"]
[Result "0-1"]
[Round "04"]
[TimeControl "180+1"]
[Date "2022.06.01"]
[WhiteClock "0:00:09"]
[BlackClock "0:00:36"]

1. d4 {[%clk 0:02:58]}  d5 {[%clk 0:02:55]} 2. Nf3 {[%clk 0:02:53]}  Nf6 {[%clk 0:02:55]} 3. Bf4 {[%clk 0:02:41]}  c5 {[%clk 0:02:55]} 4. e3 {[%clk 0:02:34]}  Nc6 {[%clk 0:02:55]} 5. c3 {[%clk 0:02:30]}  Qb6 {[%clk 0:02:55]} 6. Qc2 {[%clk 0:02:21]}  Nh5 {[%clk 0:02:52]} 7. Qc1 {[%clk 0:02:22]}  cxd4 {[%clk 0:02:28]} 8. cxd4 {[%clk 0:02:07]}  Nxf4 {[%clk 0:02:27]} 9. exf4 {[%clk 0:02:08]}  Bg4 {[%clk 0:02:23]} 10. Be2 {[%clk 0:01:50]}  Bxf3 {[%clk 0:02:15]} 11. Bxf3 {[%clk 0:01:51]}  Qxd4 {[%clk 0:02:16]} 12. O-O {[%clk 0:01:48]}  e6 {[%clk 0:02:14]} 13. f5 {[%clk 0:01:48]}  Bc5 {[%clk 0:01:58]} 14. Nd2 {[%clk 0:01:29]}  Bb6 {[%clk 0:01:50]} 15. Nb3 {[%clk 0:01:28]}  Qh4 {[%clk 0:01:45]} 16. fxe6 {[%clk 0:01:01]}  fxe6 {[%clk 0:01:44]} 17. Qe1 {[%clk 0:01:02]}  Qe7 {[%clk 0:01:15]} 18. Bg4 {[%clk 0:00:30]}  e5 {[%clk 0:01:09]} 19. Rd1 {[%clk 0:00:31]}  Rd8 {[%clk 0:01:09]} 20. Qc3 {[%clk 0:00:15]}  O-O {[%clk 0:01:04]} 21. Qh3 {[%clk 0:00:13]}  Rf6 {[%clk 0:00:55]} 22. Rd2 {[%clk 0:00:11]}  e4 {[%clk 0:00:45]} 23. Rfd1 {[%clk 0:00:09]}  e3 {[%clk 0:00:37]} 24. Rxd5 {[%clk 0:00:09]}  exf2+ {[%clk 0:00:36]} 25. Kf1 {[%clk 0:00:09]}  Rxd5 {[%clk 0:00:36]} 0-1


[Site "https://www.chess.com"]

[Event "Titled Tuesday Blitz May 31 Late 2022"]
[White "Hansen, Eric"]
[Black "Nakamura, Hikaru"]
[WhiteFideId "2606771"]
[BlackFideId "2016192"]
[WhiteElo "2568"]
[BlackElo "2850"]
[Result "0-1"]
[Round "04"]
[TimeControl "180+1"]
[Date "2022.05.31"]
[WhiteClock "0:00:03"]
[BlackClock "0:00:26"]

1. d4 {[%clk 0:03:00]}  Nf6 {[%clk 0:02:58]} 2. c4 {[%clk 0:02:55]}  e6 {[%clk 0:02:58]} 3. Nc3 {[%clk 0:02:55]}  Bb4 {[%clk 0:02:57]} 4. e3 {[%clk 0:02:52]}  O-O {[%clk 0:02:57]} 5. Bd3 {[%clk 0:02:50]}  c5 {[%clk 0:02:57]} 6. Nf3 {[%clk 0:02:46]}  d5 {[%clk 0:02:57]} 7. O-O {[%clk 0:02:45]}  cxd4 {[%clk 0:02:56]} 8. exd4 {[%clk 0:02:45]}  dxc4 {[%clk 0:02:57]} 9. Bxc4 {[%clk 0:02:46]}  b6 {[%clk 0:02:57]} 10. Re1 {[%clk 0:02:39]}  Bb7 {[%clk 0:02:55]} 11. Bg5 {[%clk 0:02:39]}  Nc6 {[%clk 0:02:48]} 12. Qd3 {[%clk 0:02:35]}  Be7 {[%clk 0:02:44]} 13. Rad1 {[%clk 0:02:33]}  h6 {[%clk 0:02:33]} 14. Bh4 {[%clk 0:02:33]}  Nh5 {[%clk 0:02:31]} 15. d5 {[%clk 0:01:24]}  Bxh4 {[%clk 0:02:17]} 16. dxc6 {[%clk 0:01:20]}  Bxc6 {[%clk 0:02:18]} 17. Ne5 {[%clk 0:01:11]}  Qxd3 {[%clk 0:01:42]} 18. Rxd3 {[%clk 0:01:10]}  Rac8 {[%clk 0:01:38]} 19. Rh3 {[%clk 0:01:03]}  Nf4 {[%clk 0:01:38]} 20. Rxh4 {[%clk 0:00:54]}  Nxg2 {[%clk 0:01:38]} 21. Rhe4 {[%clk 0:00:35]}  Nxe1 {[%clk 0:01:34]} 22. Rxe1 {[%clk 0:00:36]}  Bb7 {[%clk 0:01:32]} 23. Bb3 {[%clk 0:00:34]}  Rc5 {[%clk 0:01:27]} 24. f4 {[%clk 0:00:31]}  Rd8 {[%clk 0:01:27]} 25. f5 {[%clk 0:00:26]}  Bc8 {[%clk 0:01:20]} 26. Re2 {[%clk 0:00:22]}  Rd4 {[%clk 0:01:16]} 27. fxe6 {[%clk 0:00:19]}  Bxe6 {[%clk 0:01:16]} 28. Bxe6 {[%clk 0:00:20]}  fxe6 {[%clk 0:01:17]} 29. Kf2 {[%clk 0:00:20]}  Rd8 {[%clk 0:01:06]} 30. a3 {[%clk 0:00:19]}  b5 {[%clk 0:00:59]} 31. Nf3 {[%clk 0:00:19]}  a5 {[%clk 0:00:59]} 32. Re4 {[%clk 0:00:17]}  Rb8 {[%clk 0:00:58]} 33. Nd4 {[%clk 0:00:13]}  b4 {[%clk 0:00:55]} 34. axb4 {[%clk 0:00:14]}  Rxb4 {[%clk 0:00:56]} 35. Nde2 {[%clk 0:00:05]}  Rxb2 {[%clk 0:00:54]} 36. Ke3 {[%clk 0:00:04]}  Rc6 {[%clk 0:00:51]} 37. Kd3 {[%clk 0:00:04]}  Rd6+ {[%clk 0:00:50]} 38. Ke3 {[%clk 0:00:03]}  Rb4 {[%clk 0:00:49]} 39. Re5 {[%clk 0:00:04]}  Rh4 {[%clk 0:00:49]} 40. Rxa5 {[%clk 0:00:03]}  Rxh2 {[%clk 0:00:48]} 41. Nf4 {[%clk 0:00:02]}  Rb2 {[%clk 0:00:43]} 42. Ra8+ {[%clk 0:00:02]}  Kh7 {[%clk 0:00:42]} 43. Nfe2 {[%clk 0:00:02]}  Rb4 {[%clk 0:00:39]} 44. Ra5 {[%clk 0:00:02]}  Kg6 {[%clk 0:00:35]} 45. Kf3 {[%clk 0:00:03]}  Rd3+ {[%clk 0:00:34]} 46. Kf2 {[%clk 0:00:03]}  Kf6 {[%clk 0:00:34]} 47. Ra6 {[%clk 0:00:03]}  Rc4 {[%clk 0:00:33]} 48. Nb5 {[%clk 0:00:03]}  Rc2 {[%clk 0:00:28]} 49. Ra4 {[%clk 0:00:03]}  g5 {[%clk 0:00:27]} 50. Kf1 {[%clk 0:00:03]}  h5 {[%clk 0:00:26]} 51. Nbd4 {[%clk 0:00:03]}  Rb2 {[%clk 0:00:26]} 0-1


[Site "https://www.chess.com"]

[Event "Titled Tuesday Blitz May 31 Late 2022"]
[White "Hardaway, Brewington"]
[Black "Jones, Gawain C B"]
[WhiteFideId "30941849"]
[BlackFideId "409561"]
[WhiteElo "1768"]
[BlackElo "2657"]
[Result "1/2-1/2"]
[Round "04"]
[TimeControl "180+1"]
[Date "2022.05.31"]
[WhiteClock "0:00:27"]
[BlackClock "0:00:26"]

1. e4 {[%clk 0:02:59]}  e5 {[%clk 0:02:59]} 2. Nf3 {[%clk 0:02:59]}  Nc6 {[%clk 0:02:58]} 3. Nc3 {[%clk 0:02:59]}  Nf6 {[%clk 0:02:57]} 4. Bb5 {[%clk 0:02:58]}  Bc5 {[%clk 0:02:56]} 5. O-O {[%clk 0:02:58]}  O-O {[%clk 0:02:55]} 6. d3 {[%clk 0:02:58]}  Nd4 {[%clk 0:02:54]} 7. Nxd4 {[%clk 0:02:56]}  exd4 {[%clk 0:02:53]} 8. Ne2 {[%clk 0:02:56]}  c6 {[%clk 0:02:53]} 9. Ba4 {[%clk 0:02:56]}  d5 {[%clk 0:02:48]} 10. exd5 {[%clk 0:02:56]}  Nxd5 {[%clk 0:02:45]} 11. Nf4 {[%clk 0:02:53]}  a5 {[%clk 0:02:41]} 12. Nxd5 {[%clk 0:02:48]}  Qxd5 {[%clk 0:02:40]} 13. Bb3 {[%clk 0:02:48]}  Qf5 {[%clk 0:02:30]} 14. a4 {[%clk 0:02:45]}  Be6 {[%clk 0:02:29]} 15. Bxe6 {[%clk 0:02:34]}  Qxe6 {[%clk 0:02:29]} 16. Re1 {[%clk 0:02:34]}  Qf5 {[%clk 0:02:28]} 17. Bd2 {[%clk 0:02:30]}  Bd6 {[%clk 0:02:28]} 18. Qe2 {[%clk 0:02:25]}  h5 {[%clk 0:02:19]} 19. Qe4 {[%clk 0:02:23]}  Qc5 {[%clk 0:02:16]} 20. c3 {[%clk 0:02:14]}  dxc3 {[%clk 0:02:16]} 21. Bxc3 {[%clk 0:02:14]}  Rae8 {[%clk 0:02:14]} 22. Qf3 {[%clk 0:01:55]}  Bc7 {[%clk 0:02:02]} 23. g3 {[%clk 0:01:44]}  Re6 {[%clk 0:01:59]} 24. d4 {[%clk 0:01:20]}  Qg5 {[%clk 0:01:47]} 25. h4 {[%clk 0:01:19]}  Qg6 {[%clk 0:01:47]} 26. d5 {[%clk 0:01:12]}  cxd5 {[%clk 0:01:44]} 27. Qxd5 {[%clk 0:01:13]}  Rfe8 {[%clk 0:01:38]} 28. Kg2 {[%clk 0:00:59]}  b6 {[%clk 0:01:30]} 29. Qf3 {[%clk 0:00:55]}  Bd6 {[%clk 0:01:28]} 30. Rad1 {[%clk 0:00:49]}  Bc5 {[%clk 0:01:25]} 31. Rxe6 {[%clk 0:00:41]}  Rxe6 {[%clk 0:01:21]} 32. Rd8+ {[%clk 0:00:41]}  Kh7 {[%clk 0:01:21]} 33. Rd5 {[%clk 0:00:40]}  Qe4 {[%clk 0:01:11]} 34. Rxh5+ {[%clk 0:00:39]}  Kg8 {[%clk 0:01:12]} 35. Rg5 {[%clk 0:00:33]}  Qxf3+ {[%clk 0:01:08]} 36. Kxf3 {[%clk 0:00:33]}  f6 {[%clk 0:01:09]} 37. Rd5 {[%clk 0:00:32]}  Kh7 {[%clk 0:01:06]} 38. h5 {[%clk 0:00:32]}  Kh6 {[%clk 0:01:00]} 39. g4 {[%clk 0:00:32]}  g6 {[%clk 0:00:49]} 40. hxg6 {[%clk 0:00:31]}  Kxg6 {[%clk 0:00:49]} 41. Bxa5 {[%clk 0:00:31]}  Bxf2 {[%clk 0:00:27]} 42. Kxf2 {[%clk 0:00:31]}  bxa5 {[%clk 0:00:27]} 43. Rxa5 {[%clk 0:00:31]}  Re4 {[%clk 0:00:27]} 44. Rb5 {[%clk 0:00:27]}  Rxa4 {[%clk 0:00:27]} 45. b4 {[%clk 0:00:27]}  Ra3 {[%clk 0:00:26]} 1/2-1/2


[Site "https://www.chess.com"]

[Event "Titled Tuesday Blitz May 31 Late 2022"]
[White "Ibarra Jerez, Jose Carlos"]
[Black "Prado Lobo, Jonas"]
[WhiteFideId "2226332"]
[BlackFideId "32050666"]
[WhiteElo "2626"]
[BlackElo "2214"]
[Result "0-1"]
[Round "04"]
[TimeControl "180+1"]
[Date "2022.05.31"]
[WhiteClock "0:00:01"]
[BlackClock "0:00:06"]

1. e4 {[%clk 0:03:00]}  e5 {[%clk 0:02:59]} 2. Nf3 {[%clk 0:03:01]}  Nf6 {[%clk 0:02:59]} 3. Nxe5 {[%clk 0:02:59]}  d5 {[%clk 0:02:59]} 4. exd5 {[%clk 0:02:53]}  Qxd5 {[%clk 0:03:00]} 5. d4 {[%clk 0:02:49]}  Nc6 {[%clk 0:03:00]} 6. Nf3 {[%clk 0:02:35]}  Bg4 {[%clk 0:02:57]} 7. Be2 {[%clk 0:02:35]}  Bd6 {[%clk 0:02:49]} 8. O-O {[%clk 0:02:31]}  Qh5 {[%clk 0:02:48]} 9. h3 {[%clk 0:01:52]}  Bxh3 {[%clk 0:02:48]} 10. Ne5 {[%clk 0:01:48]}  Qh4 {[%clk 0:02:06]} 11. f4 {[%clk 0:01:34]}  Qg3 {[%clk 0:01:44]} 12. Rf2 {[%clk 0:01:11]}  Ne4 {[%clk 0:01:39]} 13. Qf1 {[%clk 0:00:45]}  Nxf2 {[%clk 0:01:32]} 14. Qxf2 {[%clk 0:00:44]}  Qxf2+ {[%clk 0:01:31]} 15. Kxf2 {[%clk 0:00:45]}  Bf5 {[%clk 0:01:32]} 16. c3 {[%clk 0:00:33]}  O-O {[%clk 0:01:20]} 17. Nd2 {[%clk 0:00:29]}  Rfe8 {[%clk 0:01:06]} 18. g4 {[%clk 0:00:20]}  Be6 {[%clk 0:00:56]} 19. Bb5 {[%clk 0:00:17]}  a6 {[%clk 0:00:38]} 20. Ba4 {[%clk 0:00:14]}  b5 {[%clk 0:00:31]} 21. Bd1 {[%clk 0:00:13]}  Bd5 {[%clk 0:00:25]} 22. Bf3 {[%clk 0:00:05]}  Bxf3 {[%clk 0:00:25]} 23. Ndxf3 {[%clk 0:00:05]}  Nxe5 {[%clk 0:00:23]} 24. fxe5 {[%clk 0:00:06]}  Bf8 {[%clk 0:00:23]} 25. Bf4 {[%clk 0:00:05]}  c5 {[%clk 0:00:23]} 26. d5 {[%clk 0:00:04]}  Rad8 {[%clk 0:00:20]} 27. Rd1 {[%clk 0:00:04]}  h6 {[%clk 0:00:18]} 28. b3 {[%clk 0:00:05]}  c4 {[%clk 0:00:16]} 29. bxc4 {[%clk 0:00:04]}  bxc4 {[%clk 0:00:17]} 30. Kg3 {[%clk 0:00:04]}  g5 {[%clk 0:00:16]} 31. Bc1 {[%clk 0:00:02]}  Bg7 {[%clk 0:00:16]} 32. d6 {[%clk 0:00:02]}  Bxe5+ {[%clk 0:00:12]} 33. Nxe5 {[%clk 0:00:02]}  Rxe5 {[%clk 0:00:13]} 34. Kf3 {[%clk 0:00:01]}  Rd7 {[%clk 0:00:12]} 35. Ba3 {[%clk 0:00:02]}  Ra5 {[%clk 0:00:12]} 36. Bb4 {[%clk 0:00:02]}  Rxa2 {[%clk 0:00:12]} 37. Rd4 {[%clk 0:00:03]}  a5 {[%clk 0:00:09]} 38. Bc5 {[%clk 0:00:03]}  Ra4 {[%clk 0:00:08]} 39. Re4 {[%clk 0:00:03]}  Kg7 {[%clk 0:00:06]} 40. Re8 {[%clk 0:00:03]}  Ra2 {[%clk 0:00:04]} 41. Bd4+ {[%clk 0:00:03]}  f6 {[%clk 0:00:03]} 42. Bc5 {[%clk 0:00:02]}  Kf7 {[%clk 0:00:03]} 43. Rc8 {[%clk 0:00:03]}  Rc2 {[%clk 0:00:03]} 44. Bd4 {[%clk 0:00:02]}  Rxd6 {[%clk 0:00:04]} 45. Ke4 {[%clk 0:00:01]}  Re2+ {[%clk 0:00:03]} 46. Kf3 {[%clk 0:00:02]}  Ree6 {[%clk 0:00:03]} 47. Rxc4 {[%clk 0:00:03]}  Rc6 {[%clk 0:00:04]} 48. Ra4 {[%clk 0:00:03]}  Ra6 {[%clk 0:00:05]} 49. c4 {[%clk 0:00:03]}  Rec6 {[%clk 0:00:05]} 50. Ke4 {[%clk 0:00:03]}  Ke6 {[%clk 0:00:05]} 51. c5 {[%clk 0:00:03]}  Ra8 {[%clk 0:00:05]} 52. Kd3 {[%clk 0:00:02]}  Kd5 {[%clk 0:00:04]} 53. Be3 {[%clk 0:00:03]}  Rxc5 {[%clk 0:00:04]} 54. Bxc5 {[%clk 0:00:02]}  Kxc5 {[%clk 0:00:05]} 55. Ke4 {[%clk 0:00:02]}  Kb5 {[%clk 0:00:05]} 56. Ra1 {[%clk 0:00:03]}  a4 {[%clk 0:00:06]} 57. Rb1+ {[%clk 0:00:03]}  Kc4 {[%clk 0:00:06]} 58. Rc1+ {[%clk 0:00:02]}  Kb3 {[%clk 0:00:06]} 59. Rc8 {[%clk 0:00:01]}  Rxc8 {[%clk 0:00:06]} 0-1


[Site "https://www.chess.com"]

[Event "Titled Tuesday Blitz May 31 Late 2022"]
[White "Jarocka, Liwia"]
[Black "Poormosavi, Seyed Kian"]
[WhiteFideId "21807558"]
[BlackFideId "12585807"]
[WhiteElo "1887"]
[BlackElo "2222"]
[Result "1/2-1/2"]
[Round "04"]
[TimeControl "180+1"]
[Date "2022.06.01"]
[WhiteClock "0:00:33"]
[BlackClock "0:00:15"]

1. e4 {[%clk 0:03:00]}  c5 {[%clk 0:02:50]} 2. Nf3 {[%clk 0:03:00]}  Nf6 {[%clk 0:02:47]} 3. d3 {[%clk 0:02:57]}  Nc6 {[%clk 0:02:46]} 4. Nbd2 {[%clk 0:02:54]}  g6 {[%clk 0:02:45]} 5. g3 {[%clk 0:02:54]}  Bg7 {[%clk 0:02:43]} 6. Bg2 {[%clk 0:02:55]}  O-O {[%clk 0:02:38]} 7. O-O {[%clk 0:02:54]}  d5 {[%clk 0:02:35]} 8. Re1 {[%clk 0:02:52]}  e5 {[%clk 0:02:25]} 9. c3 {[%clk 0:02:47]}  Be6 {[%clk 0:02:23]} 10. h4 {[%clk 0:02:43]}  d4 {[%clk 0:02:21]} 11. Nc4 {[%clk 0:02:39]}  Ne8 {[%clk 0:02:13]} 12. Ng5 {[%clk 0:02:23]}  Bc8 {[%clk 0:01:55]} 13. cxd4 {[%clk 0:02:21]}  Nxd4 {[%clk 0:01:52]} 14. Be3 {[%clk 0:02:13]}  b5 {[%clk 0:01:49]} 15. Na3 {[%clk 0:02:11]}  h6 {[%clk 0:01:37]} 16. Bxd4 {[%clk 0:02:10]}  cxd4 {[%clk 0:01:33]} 17. Nf3 {[%clk 0:02:10]}  a6 {[%clk 0:01:32]} 18. Rc1 {[%clk 0:02:09]}  Be6 {[%clk 0:01:29]} 19. b3 {[%clk 0:02:08]}  Nd6 {[%clk 0:01:25]} 20. Nc2 {[%clk 0:02:03]}  Qa5 {[%clk 0:01:22]} 21. Ra1 {[%clk 0:01:50]}  Rac8 {[%clk 0:01:13]} 22. Re2 {[%clk 0:01:43]}  Rc3 {[%clk 0:01:11]} 23. Nfe1 {[%clk 0:01:04]}  Rfc8 {[%clk 0:00:55]} 24. Qc1 {[%clk 0:01:05]}  b4 {[%clk 0:00:50]} 25. Qb2 {[%clk 0:01:00]}  Nb5 {[%clk 0:00:46]} 26. f4 {[%clk 0:00:56]}  h5 {[%clk 0:00:40]} 27. Rf2 {[%clk 0:00:46]}  Na3 {[%clk 0:00:37]} 28. Nxa3 {[%clk 0:00:43]}  bxa3 {[%clk 0:00:36]} 29. Qd2 {[%clk 0:00:42]}  Bh6 {[%clk 0:00:30]} 30. Kh2 {[%clk 0:00:28]}  Qb5 {[%clk 0:00:20]} 31. Rd1 {[%clk 0:00:26]}  a5 {[%clk 0:00:21]} 32. Nf3 {[%clk 0:00:27]}  Bg4 {[%clk 0:00:20]} 33. Nxe5 {[%clk 0:00:26]}  Qxe5 {[%clk 0:00:18]} 34. fxe5 {[%clk 0:00:25]}  Bxd2 {[%clk 0:00:19]} 35. Rdxd2 {[%clk 0:00:26]}  Rc1 {[%clk 0:00:19]} 36. Bh3 {[%clk 0:00:26]}  Bxh3 {[%clk 0:00:18]} 37. Kxh3 {[%clk 0:00:26]}  R8c5 {[%clk 0:00:15]} 38. e6 {[%clk 0:00:26]}  fxe6 {[%clk 0:00:15]} 39. Rf6 {[%clk 0:00:26]}  Kg7 {[%clk 0:00:13]} 40. Rxe6 {[%clk 0:00:26]}  R5c2 {[%clk 0:00:14]} 41. Rxc2 {[%clk 0:00:26]}  Rxc2 {[%clk 0:00:15]} 42. Re7+ {[%clk 0:00:26]}  Kh6 {[%clk 0:00:13]} 43. Rd7 {[%clk 0:00:27]}  a4 {[%clk 0:00:12]} 44. Rxd4 {[%clk 0:00:26]}  axb3 {[%clk 0:00:11]} 45. axb3 {[%clk 0:00:27]}  Rc3 {[%clk 0:00:11]} 46. Ra4 {[%clk 0:00:27]}  Rxb3 {[%clk 0:00:11]} 47. d4 {[%clk 0:00:28]}  Rd3 {[%clk 0:00:11]} 48. d5 {[%clk 0:00:28]}  Kg7 {[%clk 0:00:10]} 49. e5 {[%clk 0:00:28]}  Rxd5 {[%clk 0:00:10]} 50. Rxa3 {[%clk 0:00:28]}  Rxe5 {[%clk 0:00:10]} 51. Ra7+ {[%clk 0:00:29]}  Kh6 {[%clk 0:00:11]} 52. Ra6 {[%clk 0:00:29]}  Re3 {[%clk 0:00:10]} 53. Rb6 {[%clk 0:00:29]}  Rc3 {[%clk 0:00:10]} 54. Ra6 {[%clk 0:00:29]}  Kg7 {[%clk 0:00:10]} 55. Ra7+ {[%clk 0:00:30]}  Kf6 {[%clk 0:00:10]} 56. Ra6+ {[%clk 0:00:30]}  Kf5 {[%clk 0:00:11]} 57. Ra5+ {[%clk 0:00:30]}  Ke4 {[%clk 0:00:11]} 58. Rg5 {[%clk 0:00:30]}  Rc6 {[%clk 0:00:10]} 59. Ra5 {[%clk 0:00:30]}  Rf6 {[%clk 0:00:11]} 60. Rg5 {[%clk 0:00:30]}  Kf3 {[%clk 0:00:11]} 61. Ra5 {[%clk 0:00:29]}  Re6 {[%clk 0:00:11]} 62. Ra3+ {[%clk 0:00:28]}  Re3 {[%clk 0:00:11]} 63. Rxe3+ {[%clk 0:00:25]}  Kxe3 {[%clk 0:00:11]} 64. g4 {[%clk 0:00:26]}  Kf3 {[%clk 0:00:08]} 65. gxh5 {[%clk 0:00:27]}  gxh5 {[%clk 0:00:08]} 66. Kh2 {[%clk 0:00:27]}  Kg4 {[%clk 0:00:09]} 67. Kg2 {[%clk 0:00:28]}  Kxh4 {[%clk 0:00:10]} 68. Kh2 {[%clk 0:00:29]}  Kg4 {[%clk 0:00:11]} 69. Kh1 {[%clk 0:00:29]}  h4 {[%clk 0:00:12]} 70. Kg1 {[%clk 0:00:30]}  h3 {[%clk 0:00:13]} 71. Kh1 {[%clk 0:00:31]}  Kg3 {[%clk 0:00:14]} 72. Kg1 {[%clk 0:00:32]}  h2+ {[%clk 0:00:14]} 73. Kh1 {[%clk 0:00:33]}  Kh3 {[%clk 0:00:15]} 1/2-1/2


[Site "https://www.chess.com"]

[Event "Titled Tuesday Blitz May 31 Late 2022"]
[White "Kamsky, Gata"]
[Black "Jia, Haoxiang"]
[WhiteFideId "2000024"]
[BlackFideId "8602999"]
[WhiteElo "2645"]
[BlackElo "2628"]
[Result "1-0"]
[Round "04"]
[TimeControl "180+1"]
[Date "2022.05.31"]
[WhiteClock "0:01:15"]
[BlackClock "0:00:25"]

1. d4 {[%clk 0:03:00]}  d5 {[%clk 0:02:57]} 2. Bf4 {[%clk 0:03:00]}  Nf6 {[%clk 0:02:55]} 3. e3 {[%clk 0:03:00]}  g6 {[%clk 0:02:54]} 4. Nf3 {[%clk 0:02:58]}  Bg7 {[%clk 0:02:54]} 5. c3 {[%clk 0:02:57]}  c5 {[%clk 0:02:53]} 6. dxc5 {[%clk 0:02:52]}  O-O {[%clk 0:02:52]} 7. Nbd2 {[%clk 0:02:51]}  a5 {[%clk 0:02:48]} 8. a4 {[%clk 0:02:48]}  Nc6 {[%clk 0:02:47]} 9. Bb5 {[%clk 0:02:47]}  Nd7 {[%clk 0:02:46]} 10. Nb3 {[%clk 0:02:46]}  e5 {[%clk 0:02:45]} 11. Bg5 {[%clk 0:02:45]}  f6 {[%clk 0:02:04]} 12. Qxd5+ {[%clk 0:02:43]}  Kh8 {[%clk 0:02:04]} 13. Bh4 {[%clk 0:02:42]}  Ne7 {[%clk 0:02:04]} 14. Qc4 {[%clk 0:02:29]}  Nf5 {[%clk 0:01:59]} 15. Rd1 {[%clk 0:02:22]}  Qc7 {[%clk 0:01:59]} 16. O-O {[%clk 0:02:19]}  Nxh4 {[%clk 0:01:46]} 17. Nxh4 {[%clk 0:02:16]}  f5 {[%clk 0:01:46]} 18. Nf3 {[%clk 0:02:09]}  Nf6 {[%clk 0:01:40]} 19. Rd6 {[%clk 0:01:50]}  Ne4 {[%clk 0:01:38]} 20. Rb6 {[%clk 0:01:44]}  g5 {[%clk 0:01:28]} 21. Nfd2 {[%clk 0:01:38]}  Nf6 {[%clk 0:01:27]} 22. Rd6 {[%clk 0:01:31]}  e4 {[%clk 0:01:17]} 23. Nd4 {[%clk 0:01:17]}  Ng4 {[%clk 0:00:25]} 24. h3 {[%clk 0:01:15]} 1-0


[Site "https://www.chess.com"]